bitfinex/quotes_BTCUSD_20251208
["timestamp","ask_amount","ask_price","bid_price","bid_amount"]
[1765205892503,0.008,90909.0,90908.0,0.1164148]
[1765205892857,0.015,90909.0,90908.0,0.33641502]
[1765205893064,0.01646822,90931.0,90908.0,0.33641502]
[1765205893065,0.02219572,90925.0,90914.0,0.0109994]
[1765205893267,0.01646822,90931.0,90914.0,0.0109994]
[1765205893268,0.02219572,90916.0,90915.0,0.01099928]
[1765205893476,0.02219572,90916.0,90915.0,0.06966714]
[1765205893694,0.02219572,90916.0,90915.0,0.05866786]
[1765205894219,0.02219572,90921.0,90916.0,0.01099916]
[1765205894543,0.02219572,90921.0,90918.0,0.23097552]
[1765205894749,0.02219572,90921.0,90919.0,0.07736107]
[1765205895789,0.02219572,90913.0,90908.0,0.09593939]
[1765205895989,0.02219572,90913.0,90912.0,0.0669]
[1765205896151,0.03257,90926.0,90916.0,0.01099916]
[1765205896352,0.001,90921.0,90918.0,0.01099892]
[1765205896549,0.001,90921.0,90919.0,0.21997602]
[1765205896550,0.006,90921.0,90919.0,0.21997602]
[1765205896826,0.01646822,90931.0,90928.0,0.01099771]
[1765205897009,0.01646822,90931.0,90928.0,0.02875771]
[1765205897167,0.01646822,90931.0,90928.0,0.01776]
[1765205897500,0.2199188,90943.0,90928.0,0.01776]
[1765205897501,0.02746387,90945.0,90932.0,0.01099722]
[1765205897701,0.02219572,90941.0,90930.0,0.01099747]
[1765205897903,0.02219572,90941.0,90932.0,0.01099722]
[1765205898204,0.02219572,90941.0,90928.0,0.01776]
[1765205898205,0.01646822,90959.0,90954.0,0.01099456]
[1765205898415,0.01646822,90959.0,90956.0,0.01099432]
[1765205898740,0.02219572,90956.0,90942.0,0.01099601]
[1765205898903,0.02219572,90947.0,90943.0,0.01776]
[1765205899082,0.02219572,90947.0,90942.0,0.01099601]
[1765205899284,0.02219572,90944.0,90943.0,0.01776]
[1765205899889,0.00161287,90955.0,90944.0,0.21991555]
[1765205900111,0.00161287,90955.0,90945.0,0.01099565]
[1765205900318,0.003,90947.0,90946.0,0.21991071]
[1765205900763,0.02219572,90958.0,90948.0,0.21990371]
[1765205900916,0.02219572,90949.0,90948.0,0.23090117]
[1765205901114,0.01646822,90959.0,90946.0,0.23090624]
[1765205901115,0.005,90955.0,90952.0,0.01099481]
[1765205901447,0.02219572,90943.0,90910.0,0.00099999]
[1765205901647,0.02219572,90943.0,90929.0,0.01099759]
[1765205901648,0.00161287,90943.0,90929.0,0.01099759]
[1765205901938,0.00161287,90943.0,90928.0,0.01776]
[1765205901939,0.00161287,90943.0,90933.0,0.0109971]
[1765205902137,0.00161287,90943.0,90940.0,0.01099626]
[1765205902373,0.01099759,90929.0,90922.0,0.01675923]
[1765205902562,0.01099759,90929.0,90900.0,0.0012]
[1765205902563,0.0109988,90919.0,90900.0,0.0012]
[1765205902766,0.02219572,90905.0,90902.0,0.01100085]
[1765205902921,0.02219572,90905.0,90900.0,0.0012]
[1765205903132,0.02219572,90905.0,90904.0,0.01789]
[1765205903904,0.03580859,90905.0,90904.0,0.01789]
[1765205904101,0.03419572,90905.0,90904.0,0.01789]
[1765205904327,0.012,90905.0,90904.0,0.0207236]
[1765205904729,0.03419572,90905.0,90904.0,0.0207236]
[1765205905032,0.03580859,90905.0,90904.0,0.0029236]
[1765205905407,0.02380859,90905.0,90904.0,0.0029236]
[1765205905591,0.03280859,90905.0,90904.0,0.0029236]
[1765205908105,0.03119572,90905.0,90904.0,0.0029236]
[1765205909227,1.10089349,90905.0,90904.0,0.0024236]
[1765205909491,1.38038348,90905.0,90904.0,0.0024236]
[1765205909677,1.08421076,90905.0,90904.0,0.0024236]
[1765205909902,1.10640648,90905.0,90904.0,0.0024236]
[1765205910081,1.01742748,90905.0,90904.0,0.0024236]
[1765205910457,1.01042748,90905.0,90904.0,0.0024236]
[1765205910663,0.86093548,90905.0,90904.0,0.0024236]
[1765205910863,0.81081848,90905.0,90904.0,0.0024236]
[1765205911484,0.81881848,90905.0,90904.0,0.0024236]
[1765205911688,0.84189448,90905.0,90904.0,0.0024236]
[1765205913158,0.64331849,90905.0,90904.0,0.0024236]
[1765205913951,0.70584148,90905.0,90904.0,0.0024236]
[1765205914589,1.07919376,90905.0,90904.0,0.0024236]
[1765205914797,1.10138948,90905.0,90904.0,0.0024236]
[1765205915399,1.08238948,90905.0,90904.0,0.0024236]
[1765205915732,1.07438948,90905.0,90904.0,0.0024236]
[1765205915933,1.10538948,90905.0,90904.0,0.0024236]
[1765205918805,0.76076849,90905.0,90904.0,0.0024236]
[1765205918967,0.64731849,90905.0,90904.0,0.0024236]
[1765205920082,0.10430859,90905.0,90904.0,0.0024236]
[1765205920707,0.37829859,90905.0,90904.0,0.0024236]
[1765205920907,0.36929859,90905.0,90904.0,0.0024236]
[1765205921106,0.34729859,90905.0,90904.0,0.0024236]
[1765205921271,0.35629859,90905.0,90904.0,0.0024236]
[1765205921472,0.031,90905.0,90904.0,0.0024236]
[1765205921696,0.02219572,90912.0,90911.0,0.01099976]
[1765205921896,0.02483,90934.0,90918.0,0.21997844]
[1765205922335,0.02483,90934.0,90918.0,0.38279844]
[1765205922495,0.01099614,90941.0,90918.0,0.38279844]
[1765205922496,0.02258208,90919.0,90918.0,0.21997844]
[1765205922695,0.02258208,90919.0,90918.0,0.23773844]
[1765205923020,0.02258208,90919.0,90918.0,0.29555689]
[1765205923217,0.00038636,90919.0,90918.0,0.23773844]
[1765205923591,0.00038636,90919.0,90918.0,0.01776]
[1765205924220,0.00038636,90919.0,90918.0,0.001]
[1765205924447,0.03058208,90919.0,90918.0,0.001]
[1765205924613,0.02219572,90915.0,90914.0,0.23098595]
[1765205925258,0.02219572,90915.0,90914.0,0.25806046]
[1765205925671,0.02219572,90912.0,90911.0,0.01776]
[1765205925878,0.02219572,90912.0,90900.0,0.0012]
[1765205925879,0.02219572,90901.0,90900.0,0.0012]
[1765205926052,0.03866394,90901.0,90900.0,0.0012]
[1765205926214,0.03866394,90901.0,90900.0,0.02839927]
[1765205926397,0.007,90915.0,90914.0,0.21998812]
[1765205926598,0.007,90915.0,90914.0,0.28382812]
[1765205926929,0.007,90915.0,90914.0,0.40056812]
[1765205927116,0.007,90915.0,90914.0,0.50882328]
[1765205927315,0.24739602,90938.0,90918.0,0.22198846]
[1765205927514,0.01646822,90938.0,90918.0,0.28582846]
[1765205927722,0.01646822,90938.0,90918.0,0.38480846]
[1765205928132,0.02258208,90919.0,90918.0,0.38480846]
[1765205928332,0.02458208,90919.0,90918.0,0.39430774]
[1765205928597,0.02458208,90919.0,90918.0,0.00201002]
[1765205928808,0.00938636,90919.0,90918.0,0.00301002]
[1765205928964,0.00738636,90919.0,90918.0,0.00301002]
[1765205929168,0.00838636,90919.0,90918.0,0.00301002]
[1765205929594,0.00838636,90919.0,90918.0,0.16583002]
[1765205929777,0.00838636,90919.0,90918.0,0.2743093]
[1765205930401,0.00038636,90919.0,90918.0,0.2733093]
[1765205930756,0.00385458,90938.0,90931.0,0.01099734]
[1765205930957,0.02219572,90929.0,90928.0,0.23095195]
[1765205931229,0.02219572,90929.0,90928.0,0.04619077]
[1765205931403,0.02219572,90929.0,90921.0,0.01099855]
[1765205931404,0.02219572,90919.0,90918.0,0.01199892]
[1765205931607,0.02219572,90919.0,90918.0,0.01787668]
[1765205931608,0.02319572,90919.0,90918.0,0.01787668]
[1765205932077,0.02319572,90919.0,90918.0,0.00011668]
[1765205932078,0.02219572,90919.0,90918.0,0.00011668]
[1765205932608,0.21997602,90919.0,90918.0,0.00011668]
[1765205932809,0.21997602,90919.0,90885.0,0.0390838]
[1765205932810,0.01100073,90903.0,90900.0,0.0012]
[1765205933018,0.40652287,90901.0,90900.0,0.0012]
[1765205933244,0.64873817,90901.0,90900.0,0.0012]
[1765205933451,0.71180116,90901.0,90900.0,0.0012]
[1765205933689,1.59907116,90901.0,90900.0,0.0012]
[1765205934241,1.07947216,90901.0,90900.0,0.0012]
[1765205934655,1.10547216,90901.0,90900.0,0.0032]
[1765205935079,1.08771216,90901.0,90900.0,0.0032]
[1765205935464,1.08960416,90901.0,90900.0,0.0032]
[1765205935808,1.01625316,90901.0,90900.0,0.0032]
[1765205936152,1.03401316,90901.0,90900.0,0.0032]
[1765205936379,0.73780116,90901.0,90900.0,0.0032]
[1765205936585,0.61008817,90901.0,90900.0,0.0032]
[1765205936789,0.40782859,90901.0,90900.0,0.00574179]
[1765205936986,0.38845572,90901.0,90900.0,0.00574179]
[1765205938001,0.06545572,90901.0,90900.0,0.00574179]
[1765205938797,0.2854753,90901.0,90900.0,0.00574179]
[1765205939160,0.06545572,90901.0,90900.0,0.00574179]
[1765205939597,0.03945572,90901.0,90900.0,0.00374179]
[1765205939969,0.04126,90901.0,90900.0,0.00574179]
[1765205940169,0.06345572,90901.0,90900.0,0.00574179]
[1765205941229,0.11193572,90901.0,90900.0,0.00574179]
[1765205942018,0.06345572,90901.0,90900.0,0.00574179]
[1765205943108,0.06345572,90901.0,90900.0,0.03051947]
[1765205943304,0.04619572,90901.0,90900.0,0.03051947]
[1765205943528,0.024,90901.0,90900.0,0.19064947]
[1765205943738,0.04619572,90901.0,90900.0,0.03051947]
[1765205944132,0.008,90901.0,90900.0,0.18864947]
[1765205944343,0.00011578,90903.0,90901.0,0.22001958]
[1765205944686,0.00011578,90903.0,90900.0,0.41967015]
[1765205944687,0.00011578,90903.0,90900.0,0.25800044]
[1765205944896,0.02219572,90901.0,90900.0,0.03797878]
[1765205945106,0.02219572,90901.0,90900.0,0.03697878]
[1765205945308,0.00011578,90903.0,90901.0,0.22001958]
[1765205945513,0.02219572,90902.0,90900.0,0.25699836]
[1765205945716,0.00011578,90903.0,90900.0,0.23222068]
[1765205945717,0.02219572,90901.0,90900.0,0.23222068]
[1765205945925,0.02219572,90901.0,90900.0,0.0122011]
[1765205946129,0.02219572,90901.0,90900.0,0.07282813]
[1765205946331,0.02319572,90901.0,90900.0,0.07382813]
[1765205946604,0.02619572,90901.0,90900.0,0.07482813]
[1765205946824,0.02219572,90901.0,90900.0,0.07282813]
[1765205947238,0.02219572,90902.0,90901.0,0.22001958]
[1765205947431,0.02219572,90902.0,90901.0,0.31881199]
[1765205947976,0.0223115,90903.0,90901.0,0.36405199]
[1765205948385,0.00011578,90903.0,90902.0,0.16013]
[1765205949814,0.00011578,90903.0,90902.0,0.16261269]
[1765205950443,0.00511578,90903.0,90902.0,0.16361269]
[1765205950562,0.00511578,90903.0,90902.0,0.27209197]
[1765205950975,0.00611578,90903.0,90902.0,0.27309197]
[1765205951123,0.00111578,90903.0,90902.0,0.27209197]
[1765205951334,0.02219572,90937.0,90935.0,0.01099686]
[1765205951653,0.02231271,90937.0,90936.0,0.04728786]
[1765205951851,0.02219572,90930.0,90929.0,0.21995109]
[1765205952029,0.02219572,90930.0,90929.0,0.23094868]
[1765205952240,0.00011699,90937.0,90936.0,0.21993489]
[1765205952431,0.00011699,90937.0,90935.0,0.21993692]
[1765205952647,0.00011699,90937.0,90936.0,0.084555]
[1765205953050,0.02231271,90937.0,90936.0,0.084555]
[1765205953247,0.02331271,90937.0,90936.0,0.084555]
[1765205953616,0.02219572,90936.0,90935.0,0.001]
[1765205953830,0.02219572,90936.0,90933.0,0.0109971]
[1765205954066,0.02219572,90936.0,90934.0,0.21993828]
[1765205954280,0.03031271,90937.0,90936.0,0.001]
[1765205954485,0.02231271,90937.0,90936.0,0.02759343]
[1765205956407,0.02431271,90937.0,90936.0,0.02859343]
[1765205956773,0.02431271,90937.0,90936.0,0.0300719]
[1765205957750,0.03031271,90937.0,90936.0,0.0310719]
[1765205957903,0.00811699,90937.0,90936.0,0.1838019]
[1765205958274,0.03031271,90937.0,90936.0,0.0932419]
[1765205958491,0.03031271,90937.0,90936.0,0.22341336]
[1765205958910,0.03031271,90937.0,90936.0,0.28558336]
[1765205959223,0.00611699,90937.0,90936.0,0.37514336]
[1765205959429,0.00811699,90937.0,90936.0,0.37614336]
[1765205959722,0.00211699,90937.0,90936.0,0.37514336]
[1765205959875,0.00711699,90937.0,90936.0,0.48462264]
[1765205960414,0.00711699,90937.0,90936.0,0.50230264]
[1765205960789,1.0,90950.0,90949.0,0.21990346]
[1765205960999,1.0,90950.0,90949.0,0.29975346]
[1765205961302,1.0,90950.0,90949.0,0.39031346]
[1765205961515,1.0,90950.0,90949.0,0.49751744]
[1765205963064,1.001,90950.0,90949.0,0.49951744]
[1765205963263,1.0,90950.0,90949.0,0.49751744]
[1765205963463,1.0,90950.0,90949.0,0.49851744]
[1765205963687,1.001,90950.0,90949.0,0.49951744]
[1765205963928,1.0,90950.0,90949.0,0.49751744]
[1765205964130,1.001,90950.0,90949.0,0.49951744]
[1765205964495,1.0,90950.0,90949.0,0.49751744]
[1765205965243,1.001,90950.0,90949.0,0.49951744]
[1765205965875,1.001,90950.0,90949.0,0.50151744]
[1765205966260,1.001,90950.0,90949.0,0.50161214]
[1765205966461,1.002,90950.0,90949.0,0.50461214]
[1765205966670,1.001,90950.0,90949.0,0.50161214]
[1765205966842,1.0,90950.0,90949.0,0.49861214]
[1765205967161,1.002,90950.0,90949.0,0.50461214]
[1765205967845,1.002,90950.0,90949.0,5.52680414]
[1765205969006,1.002,90950.0,90949.0,1.63030414]
[1765205969197,1.001,90950.0,90949.0,1.62730414]
[1765205969358,1.0,90950.0,90949.0,1.62430414]
[1765205969558,1.001,90950.0,90949.0,1.62830414]
[1765205969759,0.02219572,90994.0,90993.0,0.23078483]
[1765205970083,0.00172988,90994.0,90993.0,0.23078483]
[1765205970242,0.0239256,90994.0,90993.0,0.23078483]
[1765205970726,0.0239256,90994.0,90993.0,0.23178483]
[1765205970925,0.0279256,90994.0,90993.0,0.23178483]
[1765205971159,0.0279256,90994.0,90993.0,0.33252042]
[1765205971570,0.0309256,90994.0,90993.0,0.33352042]
[1765205971975,0.0279256,90994.0,90993.0,0.10173559]
[1765205972243,0.0794256,90994.0,90993.0,0.001]
[1765205972556,0.00211701,90994.0,90993.0,0.15273]
[1765205972756,0.00211701,90994.0,90993.0,0.04332892]
[1765205972955,0.0239256,90994.0,90993.0,0.04332892]
[1765205973216,0.0239256,90994.0,90993.0,0.04432892]
[1765205973396,0.0299256,90994.0,90993.0,0.04432892]
[1765205973576,0.0239256,90994.0,90993.0,0.04332892]
[1765205973778,0.0289256,90994.0,90993.0,0.04332892]
[1765205974240,0.0319256,90994.0,90993.0,0.04432892]
[1765205974646,0.0269256,90994.0,90993.0,0.26412604]
[1765205974886,0.0239256,90994.0,90993.0,0.26312604]
[1765205975105,0.0269256,90994.0,90993.0,0.26312604]
[1765205975758,0.0269256,90994.0,90993.0,0.04332892]
[1765205975959,0.0349256,90994.0,90993.0,0.26412604]
[1765205976305,0.0319256,90994.0,90993.0,0.04432892]
[1765205976507,0.0319256,90994.0,90993.0,0.26412604]
[1765205976710,0.0239256,90994.0,90993.0,0.26312604]
[1765205977126,0.0319256,90994.0,90993.0,0.26412604]
[1765205977470,0.0319256,90994.0,90993.0,0.001]
[1765205977471,0.25472031,90994.0,90993.0,0.001]
[1765205977675,0.25521031,90994.0,90993.0,0.001]
[1765205977877,0.30422031,90994.0,90993.0,0.001]
[1765205979724,0.32186031,90994.0,90993.0,0.001]
[1765205980465,0.24202666,90979.0,90946.0,0.02948336]
[1765205980603,0.24202666,90979.0,90951.0,0.01099493]
[1765205980604,1.03025365,90979.0,90951.0,0.01099493]
[1765205980809,0.01099505,90950.0,90944.0,0.01099577]
[1765205981142,0.01099505,90950.0,90942.0,0.01099601]
[1765205981143,0.02219572,90946.0,90945.0,0.00827582]
[1765205981490,0.02219572,90946.0,90945.0,0.00924955]
[1765205982072,0.02219572,90948.0,90946.0,0.21991071]
[1765205982348,0.02219572,90948.0,90947.0,0.09328855]
[1765205982909,0.21987203,90962.0,90957.0,0.21988202]
[1765205983130,0.23086309,90963.0,90958.0,0.2308746]
[1765205983131,0.02219572,90960.0,90958.0,0.2308746]
[1765205983333,0.02219572,90960.0,90958.0,0.2784246]
[1765205983538,0.02219572,90961.0,90960.0,0.01099384]
[1765205983736,0.02219572,90961.0,90960.0,0.285099]
[1765205983737,0.02231269,90961.0,90960.0,0.285099]
[1765205983938,0.00011697,90961.0,90960.0,0.285099]
[1765205984552,0.00011697,90961.0,90960.0,0.0542283]
[1765205984726,0.00311697,90961.0,90960.0,0.0552283]
[1765205985880,0.03131269,90961.0,90960.0,0.0562283]
[1765205989171,0.28611984,90961.0,90947.0,0.0009147]
[1765205989378,0.01099795,90926.0,90920.0,0.0390838]
[1765205989725,0.01099795,90926.0,90914.0,0.05862571]
[1765205989726,0.02219572,90917.0,90916.0,0.23098042]
[1765205990087,0.03837572,90917.0,90916.0,0.23098042]
[1765205990308,0.03837572,90917.0,90911.0,0.21999163]
[1765205990309,0.01100013,90908.0,90903.0,0.01100073]
[1765205990497,0.01618,90917.0,90905.0,0.01100049]
[1765205990498,0.01099976,90911.0,90905.0,0.01100049]
[1765205990697,0.01618,90917.0,90903.0,0.01138709]
[1765205990698,0.02219572,90904.0,90903.0,0.01138709]
[1765205990891,0.02219572,90904.0,90903.0,0.00038636]
[1765205991396,0.07330859,90904.0,90903.0,0.00038636]
[1765205992132,0.02429859,90904.0,90903.0,0.00038636]
[1765205992311,0.02219572,90904.0,90903.0,0.00038636]
[1765205992536,0.02219572,90904.0,90903.0,0.00138636]
[1765205992537,0.004,90904.0,90903.0,0.00138636]
[1765205993286,0.02219572,90906.0,90904.0,0.22001232]
[1765205993776,0.323,90911.0,90904.0,0.22001232]
[1765205993926,0.33399976,90911.0,90906.0,0.22000748]
[1765205994143,0.02219572,90909.0,90908.0,0.23100262]
[1765205994754,0.0109994,90914.0,90909.0,0.01100001]
[1765205994955,0.02219572,90910.0,90909.0,0.01100001]
[1765205995160,0.01099964,90912.0,90908.0,0.01100013]
[1765205995361,0.02219572,90907.0,90906.0,0.01100037]
[1765205995607,0.02219572,90904.0,90903.0,0.00038636]
[1765205995770,0.02219572,90906.0,90903.0,0.00038636]
[1765205995966,0.02219572,90904.0,90903.0,0.23139951]
[1765205996166,0.02219572,90908.0,90907.0,0.01100025]
[1765205996770,0.02219572,90908.0,90907.0,0.05956105]
[1765205997309,0.02219572,90911.0,90910.0,0.23099769]
[1765205997534,0.02219572,90911.0,90907.0,0.001]
[1765205997756,0.01099989,90910.0,90907.0,0.001]
[1765205997892,0.02219572,90908.0,90907.0,0.001]
[1765205998229,0.02219572,90907.0,90906.0,0.22000575]
[1765205998784,0.001,90911.0,90910.0,0.2199978]
[1765205999145,0.22001232,90904.0,90903.0,0.00038636]
[1765205999558,0.24220804,90904.0,90903.0,0.00038636]
[1765205999925,0.24220804,90904.0,90903.0,0.02584854]
[1765206000329,0.02219572,90906.0,90905.0,0.01100049]
[1765206000534,0.002,90907.0,90905.0,0.2976956]
[1765206000767,0.00045546,90907.0,90906.0,0.15426]
[1765206000966,0.00099999,90970.0,90946.0,0.01099553]
[1765206000967,0.01099444,90955.0,90946.0,0.01099553]
[1765206001165,0.02219572,90948.0,90947.0,0.23090216]
[1765206001372,0.02219572,90948.0,90947.0,0.27845216]
[1765206001546,0.02219572,90949.0,90947.0,0.07512739]
[1765206001745,0.01099662,90937.0,90929.0,0.04755]
[1765206001948,0.00161287,90937.0,90918.0,0.01099892]
[1765206002149,0.01099892,90918.0,90915.0,0.01099928]
[1765206002348,0.03324,90919.0,90916.0,0.03849763]
[1765206002550,0.03324,90919.0,90916.0,0.23098118]
[1765206002775,0.03324,90926.0,90923.0,0.21996497]
[1765206002987,0.03324,90938.0,90937.0,0.21993151]
[1765206003187,0.002,90949.0,90947.0,0.001]
[1765206003349,0.002,90949.0,90948.0,0.02319105]
[1765206003551,0.002,90949.0,90948.0,0.17745105]
[1765206004023,0.002,90949.0,90947.0,0.22090734]
[1765206004378,0.002,90949.0,90947.0,0.001]
[1765206004379,0.0495,90948.0,90947.0,0.001]
[1765206004716,0.00561287,90949.0,90947.0,0.001]
[1765206004924,0.01768,90954.0,90952.0,0.21989517]
[1765206005166,0.01768,90954.0,90951.0,0.01099493]
[1765206005167,0.357,90958.0,90956.0,0.21988423]
[1765206005379,0.357,90958.0,90951.0,0.01099493]
[1765206005380,0.21988804,90956.0,90952.0,0.01099481]
[1765206005506,0.04499408,90958.0,90955.0,0.21988798]
[1765206005704,0.03363703,90958.0,90955.0,0.23088167]
[1765206005944,0.01099384,90960.0,90955.0,0.01099444]
[1765206006097,0.323,90961.0,90957.0,0.21988276]
[1765206006098,0.54287554,90961.0,90957.0,0.21988276]
[1765206006298,0.54287554,90961.0,90956.0,0.02025717]
[1765206006299,0.21988257,90958.0,90956.0,0.00926285]
[1765206006496,0.01099396,90959.0,90955.0,0.21988777]
[1765206006754,0.323,90959.0,90956.0,0.23087838]
[1765206006948,0.23087999,90957.0,90953.0,0.21989295]
[1765206007127,0.0109942,90957.0,90954.0,0.23088475]
[1765206007330,0.01099481,90952.0,90948.0,0.01099529]
[1765206007533,0.23387686,90958.0,90955.0,0.001]
[1765206007746,0.01399408,90958.0,90956.0,0.00030909]
[1765206007948,0.01099408,90958.0,90955.0,0.01099444]
[1765206008135,0.55387043,90961.0,90957.0,0.00027958]
[1765206008331,0.001,90957.0,90953.0,0.01199468]
[1765206008533,0.001,90957.0,90955.0,0.21988807]
[1765206008732,0.001,90957.0,90956.0,0.12584638]
[1765206008941,0.001,90957.0,90956.0,0.22120638]
[1765206009344,0.002,90957.0,90956.0,0.22120638]
[1765206009542,0.001,90957.0,90956.0,0.12584638]
[1765206010313,0.001,90957.0,90956.0,0.22120638]
[1765206010616,0.01099166,90978.0,90956.0,0.22120638]
[1765206010617,0.21980633,90990.0,90982.0,0.01099118]
[1765206010856,0.00172986,90990.0,90988.0,0.21980713]
[1765206011030,0.00172986,90990.0,90989.0,0.06924172]
[1765206011590,0.00011699,90990.0,90989.0,0.13121172]
[1765206011796,0.00011699,90990.0,90989.0,0.22657172]
[1765206012289,0.00211699,90990.0,90989.0,0.24525172]
[1765206012485,0.00011699,90990.0,90989.0,0.24425172]
[1765206012688,0.00011699,90990.0,90989.0,0.13121172]
[1765206012875,0.00011699,90990.0,90989.0,0.14889172]
[1765206013076,0.00311699,90990.0,90989.0,0.15289172]
[1765206013273,0.00311699,90990.0,90989.0,0.09092172]
[1765206013519,0.00111699,90990.0,90989.0,0.08992172]
[1765206013915,0.00111699,90990.0,90989.0,0.09192172]
[1765206014116,0.00111699,90990.0,90989.0,0.07424172]
[1765206014302,0.00172986,90990.0,90986.0,0.0109907]
[1765206014497,0.00272986,90990.0,90989.0,0.008]
[1765206014828,0.00011699,90990.0,90989.0,0.07214011]
[1765206015222,0.00111699,90990.0,90989.0,0.07514011]
[1765206015423,0.00011699,90990.0,90989.0,0.07214011]
[1765206015625,0.00011699,90990.0,90989.0,0.22080678]
[1765206015828,0.00011699,90990.0,90989.0,0.22180678]
[1765206016027,0.00011699,90990.0,90982.0,0.01099118]
[1765206016028,0.01099058,90987.0,90966.0,0.04609]
[1765206016227,0.0115972,90990.0,90987.0,0.01099058]
[1765206016430,0.23091275,90990.0,90988.0,0.02427987]
[1765206016862,0.01099178,90977.0,90972.0,0.01099239]
[1765206017060,0.01099142,90980.0,90977.0,0.21983456]
[1765206017236,0.23081906,90981.0,90977.0,0.01099178]
[1765206017655,0.01099118,90982.0,90978.0,0.01099166]
[1765206017861,0.01099118,90982.0,90979.0,0.01099154]
[1765206018061,0.01099106,90983.0,90980.0,0.21982853]
[1765206018257,0.01099118,90982.0,90978.0,0.01099166]
[1765206018555,0.00161287,90983.0,90979.0,0.23082248]
[1765206018761,0.00161287,90983.0,90981.0,0.21982397]
[1765206018938,0.00161287,90983.0,90982.0,0.02637906]
[1765206019137,0.00161287,90983.0,90981.0,0.21982397]
[1765206019400,0.00161287,90983.0,90942.0,0.04609]
[1765206019401,0.54287928,90959.0,90943.0,0.01099589]
[1765206019523,0.56121215,90959.0,90944.0,0.01099577]
[1765206019724,0.37428287,90959.0,90952.0,0.01099481]
[1765206020063,0.01833287,90959.0,90956.0,0.23088075]
[1765206020280,0.23837215,90959.0,90951.0,0.23089287]
[1765206020620,0.27116215,90959.0,90945.0,0.01099565]
[1765206020758,0.05128287,90959.0,90951.0,0.01099493]
[1765206020968,0.05128287,90959.0,90958.0,0.00125008]
[1765206020969,0.05428287,90959.0,90958.0,0.00125008]
[1765206021563,0.05728287,90959.0,90958.0,0.00225008]
[1765206022954,0.27716215,90959.0,90958.0,0.00225008]
[1765206023590,0.05728287,90959.0,90958.0,0.00225008]
[1765206024000,0.02449287,90959.0,90958.0,0.00225008]
[1765206024483,0.006,90959.0,90958.0,0.00225008]
[1765206024854,0.006,90959.0,90958.0,0.15411008]
[1765206025624,0.003,90959.0,90958.0,0.15311008]
[1765206026007,0.004,90959.0,90958.0,0.17109235]
[1765206026788,0.001,90959.0,90958.0,0.00025008]
[1765206026909,0.0109936,90962.0,90958.0,0.00025008]
[1765206027116,0.00149,90959.0,90958.0,0.00025008]
[1765206027352,0.27037928,90959.0,90958.0,0.00025008]
[1765206027549,0.26937928,90959.0,90958.0,0.00025008]
[1765206027727,0.27037928,90959.0,90958.0,0.00625008]
[1765206027931,0.22136928,90959.0,90958.0,0.00625008]
[1765206028294,0.27099215,90959.0,90958.0,0.00225008]
[1765206028444,0.59499215,90959.0,90958.0,0.00225008]
[1765206028639,0.59499215,90959.0,90958.0,0.00025008]
[1765206029058,0.59699215,90959.0,90958.0,0.00025008]
[1765206029465,0.59499215,90959.0,90958.0,0.00025008]
[1765206029663,0.59399215,90959.0,90958.0,0.00025008]
[1765206030064,0.60099215,90959.0,90958.0,0.00225008]
[1765206030291,2.45198215,90959.0,90958.0,0.00225008]
[1765206030926,4.35198215,90959.0,90958.0,0.00225008]
[1765206031481,4.40099215,90959.0,90958.0,0.00225008]
[1765206032706,4.13161287,90959.0,90958.0,0.00225008]
[1765206032933,4.18111287,90959.0,90958.0,0.00225008]
[1765206034158,4.13161287,90959.0,90958.0,0.00225008]
[1765206034806,4.18111287,90959.0,90958.0,0.00225008]
[1765206034988,4.13210287,90959.0,90958.0,0.00225008]
[1765206035189,4.13161287,90959.0,90958.0,0.00225008]
[1765206035426,4.13259287,90959.0,90958.0,0.00225008]
[1765206035637,4.18112287,90959.0,90958.0,0.00225008]
[1765206035846,4.40100215,90959.0,90958.0,0.00225008]
[1765206036245,4.13259287,90959.0,90958.0,0.00225008]
[1765206036411,4.13161287,90959.0,90958.0,0.00225008]
[1765206036607,4.13161287,90959.0,90958.0,0.22213178]
[1765206037014,3.807,90959.0,90958.0,0.22213178]
[1765206037323,3.807,90959.0,90958.0,0.39163178]
[1765206037745,3.807,90959.0,90958.0,0.23977178]
[1765206038049,3.804,90959.0,90958.0,0.23877178]
[1765206038374,4.06986928,90959.0,90958.0,0.00025008]
[1765206038646,4.39286928,90959.0,90958.0,0.00025008]
[1765206039162,4.41154928,90959.0,90958.0,0.00025008]
[1765206039734,4.41154928,90959.0,90958.0,0.00225008]
[1765206039959,4.41154928,90959.0,90958.0,0.00025008]
[1765206040335,4.42916215,90959.0,90958.0,0.00225008]
[1765206040518,4.41216215,90959.0,90958.0,0.00025008]
[1765206040720,4.41516215,90959.0,90958.0,0.00325008]
[1765206040949,4.43416215,90959.0,90958.0,0.00325008]
[1765206041145,4.41516215,90959.0,90958.0,0.00125008]
[1765206041360,4.42916215,90959.0,90958.0,0.00225008]
[1765206041529,4.43816215,90959.0,90958.0,0.00325008]
[1765206042763,4.42048215,90959.0,90958.0,0.00325008]
[1765206042936,4.43812215,90959.0,90958.0,0.00325008]
[1765206043290,4.41999215,90959.0,90958.0,0.00325008]
[1765206043502,4.42048215,90959.0,90958.0,0.00325008]
[1765206044125,4.39448215,90959.0,90958.0,0.00025008]
[1765206044545,3.82161287,90959.0,90958.0,0.22313178]
[1765206044873,3.82161287,90959.0,90958.0,0.40902231]
[1765206045050,3.82161287,90959.0,90958.0,0.25367231]
[1765206045420,3.81361287,90959.0,90958.0,0.22213178]
[1765206046234,3.80161287,90959.0,90958.0,0.22013178]
[1765206046587,3.80361287,90959.0,90958.0,0.22113178]
[1765206046742,3.80361287,90959.0,90924.0,0.01099819]
[1765206046743,0.0495,90958.0,90924.0,0.01099819]
[1765206046947,0.03334,90925.0,90917.0,0.01099904]
[1765206047127,0.01099831,90923.0,90918.0,0.02419834]
[1765206047332,0.01099892,90918.0,90907.0,0.01100025]
[1765206047533,0.01099928,90915.0,90906.0,0.01100037]
[1765206047862,0.23098779,90914.0,90909.0,0.01100001]
[1765206048061,0.01099916,90916.0,90910.0,0.01099989]
[1765206048280,0.21999087,90913.0,90911.0,0.02423875]
[1765206048503,0.21999087,90913.0,90909.0,0.00038636]
[1765206048504,0.2309934,90912.0,90909.0,0.00038636]
[1765206048644,0.01099964,90912.0,90909.0,0.00038636]
[1765206048842,0.0109994,90914.0,90910.0,0.01099989]
[1765206049084,0.01099952,90913.0,90909.0,0.01138637]
[1765206049393,0.0109994,90914.0,90910.0,0.21999613]
[1765206049602,0.23098811,90914.0,90911.0,0.0484385]
[1765206049817,0.0109994,90914.0,90911.0,0.0484385]
[1765206050029,0.01099722,90932.0,90925.0,0.01099807]
[1765206050178,0.323,90932.0,90929.0,0.01099759]
[1765206050399,0.323,90932.0,90929.0,0.23094905]
[1765206050743,0.323,90932.0,90929.0,0.01099759]